fUST/lending_fUST_20251006
["ID","MTS","AMOUNT","RATE_DAILY","PERIOD"]
[389525143,1759697433136,-500.0,0.00016438,2]
[389525144,1759697433145,-500.0,0.00016438,2]
[389525145,1759697433154,-500.0,0.00016438,2]
[389525146,1759697433163,-500.0,0.00016438,2]
[389525147,1759697433172,-500.0,0.00016438,2]
[389525148,1759697433186,-500.0,0.00016438,2]
[389525149,1759697433195,-500.0,0.00016438,2]
[389525150,1759697433205,-617.41,0.00016438,2]
[389525151,1759697433214,-500.0,0.00016438,2]
[389525152,1759697433223,-500.0,0.00016438,2]
[389525153,1759697433232,-500.0,0.00016438,2]
[389525154,1759697433241,-500.0,0.00016438,2]
[389525155,1759697433250,-500.0,0.00016438,2]
[389525156,1759697433259,-500.0,0.00016438,2]
[389525157,1759697433268,-500.0,0.00016438,2]
[389525158,1759697433277,-500.0,0.00016438,2]
[389525159,1759697433286,-500.0,0.00016438,2]
[389525160,1759697433295,-500.0,0.00016438,2]
[389525161,1759697433305,-500.0,0.00016438,2]
[389525162,1759697433314,-500.0,0.00016438,2]
[389525163,1759697433324,-500.0,0.00016438,2]
[389525164,1759697433333,-514.21966805,0.00016438,2]
[389525165,1759697433342,-500.0,0.00016438,2]
[389525166,1759697433351,-500.0,0.00016438,2]
[389525167,1759697433361,-531.6,0.00016438,2]
[389525168,1759697433371,-500.0,0.00016438,2]
[389525169,1759697433380,-500.0,0.00016438,2]
[389525170,1759697433390,-500.0,0.00016438,2]
[389525171,1759697433399,-500.0,0.00016438,2]
[389525172,1759697433408,-500.0,0.00016438,2]
[389525173,1759697433418,-500.0,0.00016438,2]
[389525174,1759697433427,-500.0,0.00016438,2]
[389525175,1759697433436,-500.0,0.00016438,2]
[389525176,1759697433445,-500.0,0.00016438,2]
[389525177,1759697433455,-500.0,0.00016438,2]
[389525178,1759697433464,-500.0,0.00016438,2]
[389525179,1759697433474,-500.0,0.00016438,2]
[389525180,1759697433484,-500.0,0.00016438,2]
[389525181,1759697433494,-500.0,0.00016438,2]
[389525182,1759697433504,-500.0,0.00016438,2]
[389525183,1759697433514,-500.0,0.00016438,2]
[389525184,1759697433524,-500.0,0.00016438,2]
[389525185,1759697433534,-500.0,0.00016438,2]
[389525186,1759697433544,-500.0,0.00016438,2]
[389525187,1759697433553,-1397.85,0.00016438,2]
[389525188,1759697433563,-500.0,0.00016438,2]
[389525189,1759697433573,-500.0,0.00016438,2]
[389525190,1759697433583,-500.0,0.00016438,2]
[389525191,1759697433591,-500.0,0.00016438,2]
[389525192,1759697433600,-500.0,0.00016438,2]
[389525193,1759697433613,-500.0,0.00016438,2]
[389525194,1759697433623,-780.8,0.00016438,2]
[389525195,1759697433633,-500.0,0.00016438,2]
[389525196,1759697433643,-500.0,0.00016438,2]
[389525197,1759697433654,-772.56,0.00016438,2]
[389525198,1759697433664,-500.0,0.00016438,2]
[389525199,1759697433674,-500.0,0.00016438,2]
[389525200,1759697433683,-500.0,0.00016438,2]
[389525201,1759697433693,-500.0,0.00016438,2]
[389525202,1759697433703,-500.0,0.00016438,2]
[389525203,1759697433712,-500.0,0.00016438,2]
[389525204,1759697433722,-500.0,0.00016438,2]
[389525205,1759697433731,-818.75,0.00016438,2]
[389525206,1759697433741,-518.02,0.00016438,2]
[389525207,1759697433750,-500.0,0.00016438,2]
[389525208,1759697433760,-500.0,0.00016438,2]
[389525209,1759697433769,-500.0,0.00016438,2]
[389525210,1759697433780,-500.0,0.00016438,2]
[389525211,1759697433789,-500.0,0.00016438,2]
[389525212,1759697433798,-388.72231467,0.00016438,2]
[389525213,1759697433808,-500.0,0.00016438,2]
[389525214,1759697433818,-500.0,0.00016438,2]
[389525215,1759697433827,-500.0,0.00016438,2]
[389525216,1759697433837,-541.9,0.00016438,2]
[389525217,1759697433846,-500.0,0.00016438,2]
[389525218,1759697433856,-500.0,0.00016438,2]
[389525219,1759697433866,-500.0,0.00016438,2]
[389525220,1759697433875,-547.59,0.00016438,2]
[389525221,1759697433885,-996.85,0.00016438,2]
[389525222,1759697433894,-500.0,0.00016438,2]
[389525223,1759697433904,-500.0,0.00016438,2]
[389525224,1759697433913,-612.06,0.00016438,2]
[389525225,1759697433923,-500.0,0.00016438,2]
[389525226,1759697433932,-500.0,0.00016438,2]
[389525227,1759697433942,-500.0,0.00016438,2]
[389525228,1759697433951,-500.0,0.00016438,2]
[389525229,1759697433961,-500.0,0.00016438,2]
[389525230,1759697433971,-695.62,0.00016438,2]
[389525231,1759697433980,-500.0,0.00016438,2]
[389525232,1759697433990,-500.0,0.00016438,2]
[389525233,1759697434000,-500.0,0.00016438,2]
[389525234,1759697434010,-500.0,0.00016438,2]
[389525235,1759697434019,-500.0,0.00016438,2]
[389525236,1759697434029,-500.0,0.00016438,2]
[389525237,1759697434038,-500.0,0.00016438,2]
[389525238,1759697434047,-500.0,0.00016438,2]
[389525239,1759697434059,-632.55,0.00016438,2]
[389525240,1759697434068,-1237.91,0.00016438,2]
[389525241,1759697434077,-500.0,0.00016438,2]
[389525242,1759697434086,-500.0,0.00016438,2]
[389525243,1759697434096,-500.0,0.00016438,2]
[389525244,1759697434105,-500.0,0.00016438,2]
[389525245,1759697434114,-500.0,0.00016438,2]
[389525246,1759697434123,-500.0,0.00016438,2]
[389525247,1759697434134,-500.0,0.00016438,2]
[389525248,1759697434143,-553.94,0.00016438,2]
[389525249,1759697434152,-1240.7,0.00016438,2]
[389525250,1759697434162,-500.0,0.00016438,2]
[389525251,1759697434171,-187.3713497,0.00016438,2]
[389525268,1759697438672,-312.6286503,0.00016438,2]
[389525269,1759697438681,-500.0,0.00016438,2]
[389525270,1759697438691,-500.0,0.00016438,2]
[389525272,1759697438700,-500.0,0.00016438,2]
[389525274,1759697438708,-500.0,0.00016438,2]
[389525276,1759697438718,-1230.21,0.00016438,2]
[389525277,1759697438727,-500.0,0.00016438,2]
[389525278,1759697438736,-500.0,0.00016438,2]
[389525279,1759697438745,-500.0,0.00016438,2]
[389525280,1759697438754,-732.65,0.00016438,2]
[389525281,1759697438763,-500.0,0.00016438,2]
[389525282,1759697438772,-500.0,0.00016438,2]
[389525283,1759697438781,-687.71,0.00016438,2]
[389525284,1759697438791,-506.53877013,0.00016438,2]
[389525285,1759697438799,-2739.08,0.00016438,2]
[389525286,1759697438808,-500.0,0.00016438,2]
[389525287,1759697438817,-484.64798756,0.00016438,2]
[389525288,1759697438826,-500.0,0.00016438,2]
[389525289,1759697438835,-500.0,0.00016438,2]
[389525290,1759697438844,-500.0,0.00016438,2]
[389525291,1759697438853,-500.0,0.00016438,2]
[389525292,1759697438862,-613.3,0.00016438,2]
[389525293,1759697438871,-1521.37,0.00016438,2]
[389525294,1759697438880,-1201.66,0.00016438,2]
[389525295,1759697438890,-813.88,0.00016438,2]
[389525296,1759697438899,-500.0,0.00016438,2]
[389525297,1759697438908,-1308.23,0.00016438,2]
[389525298,1759697438917,-2318.03,0.00016438,2]
[389525299,1759697438927,-643.95,0.00016438,2]
[389525300,1759697438936,-500.0,0.00016438,2]
[389525301,1759697438946,-1886.04,0.00016438,2]
[389525302,1759697438955,-500.0,0.00016438,2]
[389525303,1759697438964,-500.0,0.00016438,2]
[389525304,1759697438974,-611.16,0.00016438,2]
[389525305,1759697438983,-2651.29,0.00016438,2]
[389525306,1759697438993,-701.14,0.00016438,2]
[389525307,1759697439002,-548.95,0.00016438,2]
[389525308,1759697439011,-500.0,0.00016438,2]
[389525309,1759697439020,-500.0,0.00016438,2]
[389525310,1759697439029,-500.0,0.00016438,2]
[389525311,1759697439038,-521.26,0.00016438,2]
[389525312,1759697439047,-500.0,0.00016438,2]
[389525313,1759697439056,-1034.55,0.00016438,2]
[389525314,1759697439066,-1976.93,0.00016438,2]
[389525315,1759697439075,-948.16,0.00016438,2]
[389525316,1759697439084,-500.0,0.00016438,2]
[389525317,1759697439093,-781.91,0.00016438,2]
[389525318,1759697439103,-500.0,0.00016438,2]
[389525319,1759697439112,-666.66,0.00016438,2]
[389525320,1759697439121,-1527.26,0.00016438,2]
[389525321,1759697439130,-500.0,0.00016438,2]
[389525322,1759697439139,-500.0,0.00016438,2]
[389525323,1759697439148,-493.65964017,0.00016438,2]
[389525626,1759697443788,-352.68035983,0.00016438,2]
[389525627,1759697443797,-500.0,0.00016438,2]
[389525628,1759697443805,-557.74,0.00016438,2]
[389525629,1759697443815,-28.78811213,0.00016438,2]
[389525630,1759697443826,-145.57699835,0.00016438,2]
[389525631,1759697443835,-500.0,0.00016438,2]
[389525632,1759697443844,-500.0,0.00016438,2]
[389525633,1759697443853,-500.0,0.00016438,2]
[389525634,1759697443862,-567.53,0.00016438,2]
[389525635,1759697443871,-500.0,0.00016438,2]
[389525636,1759697443881,-770.65,0.00016438,2]
[389525637,1759697443890,-500.0,0.00016438,2]
[389525638,1759697443899,-1466.58301825,0.00016438,2]
[389525639,1759697443910,-260.48698175,0.00016438,2]
[389525641,1759697443920,-500.0,0.00016438,2]
[389525643,1759697443929,-3835.01,0.00016438,2]
[389525645,1759697443938,-500.0,0.00016438,2]
[389525646,1759697443948,-500.0,0.00016438,2]
[389525647,1759697443957,-500.0,0.00016438,2]
[389525648,1759697443966,-500.0,0.00016438,2]
[389525650,1759697443975,-951.66,0.00016438,2]
[389525652,1759697443984,-500.0,0.00016438,2]
[389525654,1759697443993,-1316.51,0.00016438,2]
[389525656,1759697444002,-500.0,0.00016438,2]
[389525657,1759697444011,-500.0,0.00016438,2]
[389525658,1759697444021,-500.0,0.00016438,2]
[389525660,1759697444030,-2126.08,0.00016438,2]
[389525662,1759697444039,-919.36,0.00016438,2]
[389525663,1759697444048,-979.11,0.00016438,2]
[389525664,1759697444057,-500.0,0.00016438,2]
[389525665,1759697444066,-787.57,0.00016438,2]
[389525666,1759697444075,-3317.91,0.00016438,2]
[389525667,1759697444084,-500.0,0.00016438,2]
[389525668,1759697444094,-555.29,0.00016438,2]
[389525669,1759697444103,-500.0,0.00016438,2]
[389525670,1759697444112,-500.0,0.00016438,2]
[389525671,1759697444122,-500.0,0.00016438,2]
[389525672,1759697444131,-561.15,0.00016438,2]
[389525673,1759697444141,-858.47,0.00016438,2]
[389525674,1759697444150,-3146.09,0.00016438,2]
[389525675,1759697444160,-1305.18,0.00016438,2]
[389525677,1759697444169,-1841.72,0.00016438,2]
[389525679,1759697444181,-500.0,0.00016438,2]
[389525681,1759697444191,-500.0,0.00016438,2]
[389525682,1759697444200,-1636.08,0.00016438,2]
[389525684,1759697444209,-481.80959482,0.00016438,2]
[389525687,1759697444219,-500.0,0.00016438,2]
[389525688,1759697444231,-776.67,0.00016438,2]
[389525690,1759697444239,-500.0,0.00016438,2]
[389525691,1759697444248,-500.0,0.00016438,2]
[389525692,1759697444259,-3380.3,0.00016438,2]
[389525693,1759697444268,-1340.01,0.00016438,2]
[389525694,1759697444277,-500.0,0.00016438,2]
[389525695,1759697444286,-500.0,0.00016438,2]
[389525696,1759697444294,-1049.87,0.00016438,2]
[389525697,1759697444303,-1235.66,0.00016438,2]
[389525698,1759697444312,-688.63,0.00016438,2]
[389525699,1759697444322,-500.0,0.00016438,2]
[389525700,1759697444332,-500.0,0.00016438,2]
[389525701,1759697444341,-1000.0,0.00016438,2]
[389525702,1759697444350,-206.94331665,0.00016712,2]
[389525703,1759697444359,-500.0,0.00016712,2]
[389525704,1759697444367,-500.0,0.00016712,2]
[389525705,1759697444377,-550.57,0.00016712,2]
[389525706,1759697444386,-500.0,0.00016712,2]
[389525707,1759697444395,-500.0,0.00016712,2]
[389525708,1759697444404,-545.39,0.00016712,2]
[389525709,1759697444413,-500.0,0.00016712,2]
[389525710,1759697444422,-500.0,0.00016712,2]
[389525711,1759697444431,-500.0,0.00016712,2]
[389525712,1759697444441,-500.0,0.00016712,2]
[389525713,1759697444450,-617.41,0.00016712,2]
[389525714,1759697444459,-500.0,0.00016712,2]
[389525715,1759697444468,-500.0,0.00016712,2]
[389525716,1759697444478,-500.0,0.00016712,2]
[389525717,1759697444487,-500.0,0.00016712,2]
[389525718,1759697444496,-500.0,0.00016712,2]
[389525719,1759697444505,-356.71982264,0.00016712,2]
[389525720,1759697444513,-500.0,0.00016712,2]
[389525721,1759697444523,-500.0,0.00016712,2]
[389525722,1759697444532,-500.0,0.00016712,2]
[389525723,1759697444540,-500.0,0.00016712,2]
[389525724,1759697444549,-531.6,0.00016712,2]
[389525725,1759697444559,-500.0,0.00016712,2]
[389525726,1759697444568,-500.0,0.00016712,2]
[389525727,1759697444576,-500.0,0.00016712,2]
[389525728,1759697444586,-500.0,0.00016712,2]
[389525729,1759697444595,-500.0,0.00016712,2]
[389525730,1759697444604,-288.30340522,0.00016712,2]
[389525731,1759697444613,-500.0,0.00016712,2]
[389525732,1759697444622,-500.0,0.00016712,2]
[389525733,1759697444631,-500.0,0.00016712,2]
[389525734,1759697444640,-500.0,0.00016712,2]
[389525735,1759697444650,-468.98320977,0.00016712,2]
[389525736,1759697444659,-500.0,0.00016712,2]
[389525737,1759697444668,-1397.85,0.00016712,2]
[389525738,1759697444677,-500.0,0.00016712,2]
[389525739,1759697444686,-500.0,0.00016712,2]
[389525740,1759697444695,-500.0,0.00016712,2]
[389525741,1759697444704,-500.0,0.00016712,2]
[389525742,1759697444713,-780.8,0.00016712,2]
[389525743,1759697444722,-500.0,0.00016712,2]
[389525744,1759697444731,-772.56,0.00016712,2]
[389525745,1759697444740,-500.0,0.00016712,2]
[389525746,1759697444749,-500.0,0.00016712,2]
[389525747,1759697444758,-500.0,0.00016712,2]
[389525748,1759697444767,-500.0,0.00016712,2]
[389525749,1759697444776,-341.92160715,0.00016712,2]
[389525750,1759697444785,-818.75,0.00016712,2]
[389525751,1759697444795,-518.02,0.00016712,2]
[389525752,1759697444803,-500.0,0.00016712,2]
[389525753,1759697444813,-500.0,0.00016712,2]
[389525754,1759697444822,-500.0,0.00016712,2]
[389525755,1759697444831,-500.0,0.00016712,2]
[389525756,1759697444840,-541.9,0.00016712,2]
[389525757,1759697444849,-500.0,0.00016712,2]
[389525758,1759697444858,-500.0,0.00016712,2]
[389525759,1759697444867,-547.59,0.00016712,2]
[389525760,1759697444876,-996.85,0.00016712,2]
[389525761,1759697444886,-612.06,0.00016712,2]
[389525762,1759697444896,-500.0,0.00016712,2]
[389525763,1759697444905,-500.0,0.00016712,2]
[389525764,1759697444913,-695.62,0.00016712,2]
[389525765,1759697444922,-500.0,0.00016712,2]
[389525766,1759697444932,-500.0,0.00016712,2]
[389525767,1759697444941,-500.0,0.00016712,2]
[389525768,1759697444951,-500.0,0.00016712,2]
[389525769,1759697444961,-500.0,0.00016712,2]
[389525770,1759697444971,-500.0,0.00016712,2]
[389525771,1759697444980,-632.55,0.00016712,2]
[389525772,1759697444989,-1237.91,0.00016712,2]
[389525773,1759697444998,-500.0,0.00016712,2]
[389525774,1759697445007,-500.0,0.00016712,2]
[389525775,1759697445016,-500.0,0.00016712,2]
[389525776,1759697445026,-500.0,0.00016712,2]
[389525777,1759697445035,-500.0,0.00016712,2]
[389525778,1759697445044,-500.0,0.00016712,2]
[389525779,1759697445053,-500.0,0.00016712,2]
[389525780,1759697445063,-553.94,0.00016712,2]
[389525781,1759697445071,-1240.7,0.00016712,2]
[389525782,1759697445080,-500.0,0.00016712,2]
[389525783,1759697445089,-500.0,0.00016712,2]
[389525784,1759697445098,-500.0,0.00016712,2]
[389525785,1759697445108,-500.0,0.00016712,2]
[389525786,1759697445117,-500.0,0.00016712,2]
[389525787,1759697445126,-732.65,0.00016712,2]
[389525789,1759697445135,-500.0,0.00016712,2]
[389525791,1759697445144,-500.0,0.00016712,2]
[389525793,1759697445153,-2739.08,0.00016712,2]
[389525795,1759697445162,-498.85988071,0.00016712,2]
[389525797,1759697445172,-500.0,0.00016712,2]
[389525798,1759697445183,-500.0,0.00016712,2]
[389525799,1759697445194,-500.0,0.00016712,2]
[389525800,1759697445203,-613.3,0.00016712,2]
[389525801,1759697445212,-1521.37,0.00016712,2]
[389525802,1759697445223,-1201.66,0.00016712,2]
[389525803,1759697445232,-813.88,0.00016712,2]
[389525804,1759697445240,-500.0,0.00016712,2]
[389525805,1759697445250,-1308.23,0.00016712,2]
[389525806,1759697445261,-2318.03,0.00016712,2]
[389525807,1759697445271,-643.95,0.00016712,2]
[389525808,1759697445280,-500.0,0.00016712,2]
[389525809,1759697445290,-1886.04,0.00016712,2]
[389525810,1759697445300,-500.0,0.00016712,2]
[389525811,1759697445310,-500.0,0.00016712,2]
[389525812,1759697445320,-129.78386457,0.00016712,2]
[389525824,1759697447152,-500.0,0.00016438,2]
[389525825,1759697447162,-481.37613543,0.00016712,2]
[389525826,1759697447171,-2651.29,0.00016712,2]
[389525827,1759697447183,-701.14,0.00016712,2]
[389525828,1759697447192,-548.95,0.00016712,2]
[389525829,1759697447201,-500.0,0.00016712,2]
[389525830,1759697447211,-500.0,0.00016712,2]
[389525831,1759697447220,-500.0,0.00016712,2]
[389525832,1759697447229,-500.0,0.00016712,2]
[389525833,1759697447238,-1034.55,0.00016712,2]
[389525834,1759697447248,-1976.93,0.00016712,2]
[389525835,1759697447257,-948.16,0.00016712,2]
[389525836,1759697447266,-500.0,0.00016712,2]
[389525837,1759697447275,-781.91,0.00016712,2]
[389525838,1759697447284,-500.0,0.00016712,2]
[389525839,1759697447294,-666.66,0.00016712,2]
[389525840,1759697447303,-1527.26,0.00016712,2]
[389525841,1759697447312,-500.0,0.00016712,2]
[389525842,1759697447321,-500.0,0.00016712,2]
[389525843,1759697447331,-846.34,0.00016712,2]
[389525844,1759697447340,-500.0,0.00016712,2]
[389525845,1759697447349,-557.74,0.00016712,2]
[389525846,1759697447358,-500.0,0.00016712,2]
[389525847,1759697447367,-500.0,0.00016712,2]
[389525848,1759697447376,-567.53,0.00016712,2]
[389525849,1759697447385,-500.0,0.00016712,2]
[389525850,1759697447395,-770.65,0.00016712,2]
[389525851,1759697447405,-500.0,0.00016712,2]
[389525852,1759697447415,-1727.07,0.00016712,2]
[389525853,1759697447425,-500.0,0.00016712,2]
[389525854,1759697447436,-2283.56355132,0.00016712,2]
[389525861,1759697650263,1300.0,0.0001595,2]
[389525863,1759697673205,1300.0,0.0001595,2]
[389525864,1759697695713,1300.0,0.0001595,2]
[389525865,1759697703745,1300.0,0.0001595,2]
[389525868,1759697718908,300.0,0.0001595,2]
[389525869,1759697727217,300.0,0.0001595,2]
[389525870,1759697742420,300.0,0.0001595,2]
[389525871,1759697750205,300.0,0.0001595,2]
[389525872,1759697765360,300.0,0.0001595,2]
[389525873,1759697773115,300.0,0.0001595,2]
[389525874,1759697788374,300.0,0.0001595,2]
[389525875,1759697796187,300.0,0.0001595,2]
[389525876,1759697812146,300.0,0.0001595,2]
[389525877,1759697819932,300.0,0.0001595,2]
[389525878,1759697831741,666.0,0.00015362,2]
[389525879,1759697835213,300.0,0.0001595,2]
[389525880,1759697843003,300.0,0.0001595,2]
[389525881,1759697858129,277.31307822,0.0001595,2]
[389525882,1759697865851,300.0,0.0001595,2]
[389525884,1759697888160,300.0,0.0001595,2]
[389525885,1759697910690,300.0,0.0001595,2]
[389525886,1759697933440,300.0,0.0001595,2]
[389525888,1759697956255,300.0,0.0001595,2]
[389525889,1759697978673,300.0,0.0001595,2]
[389525892,1759698143355,5343.70903952,0.00025,30]
[389525893,1759698291526,258.531986,0.00015337,2]
[389525916,1759698465914,56414.06188628,0.00016,2]
[389525959,1759698632015,-161.98230199,0.00015899,2]
[389525961,1759698632024,-300.0,0.00015899,2]
[389525963,1759698632033,-1589.58167408,0.000159,2]
[389525966,1759698632044,-1051.7223465,0.000159,2]
[389525968,1759698632053,-300.0,0.00015988,2]
[389525969,1759698632062,-300.0,0.00015988,2]
[389525970,1759698632071,-300.0,0.00015988,2]
[389525971,1759698632080,-300.0,0.00015988,2]
[389525972,1759698632089,-1200.0,0.00015988,2]
[389525973,1759698632098,-300.0,0.00015988,2]
[389525974,1759698632107,-341.30785693,0.00015989,2]
[389525975,1759698632116,-254.43032571,0.00015989,2]
[389525977,1759698632125,-500.0,0.00015989,2]
[389525979,1759698632134,-500.0,0.00015989,2]
[389525981,1759698632143,-500.0,0.00015989,2]
[389525983,1759698632152,-500.0,0.00015989,2]
[389525985,1759698632161,-434.52183217,0.00015989,2]
[389525987,1759698632170,-618.09683755,0.00015989,2]
[389525989,1759698632179,-3187.39584937,0.0001599,2]
[389525991,1759698632191,-5625.06249474,0.0001599,2]
[389525994,1759698632201,-1680.06780001,0.0001599,2]
[389525996,1759698632213,-20344.31043749,0.0001599,2]
[389526160,1759698637707,-11442.44151854,0.0001599,2]
[389526161,1759698637763,-51098.61148953,0.0001599,2]
[389526162,1759698637772,-282438.53819059,0.00016,2]
[389526163,1759698637782,-500.0,0.00016,2]
[389526164,1759698637791,-500.0,0.00016274,2]
[389526165,1759698637799,-324.0,0.00016299,2]
[389526166,1759698637808,-258.71,0.00016328,3]
[389526167,1759698637817,-776.15,0.00016328,3]
[389526168,1759698637826,-1200.0,0.00016333,2]
[389526169,1759698637835,-326162.92665584,0.00016338,2]
[389526170,1759698637844,-500.0,0.00016338,2]
[389526171,1759698637853,-587.6575632,0.000164,2]
[389526172,1759698637862,-2641.30402055,0.00016421,2]
[389526173,1759698637871,-500.0,0.00016438,2]
[389526174,1759698637880,-500.0,0.00016438,2]
[389526175,1759698637889,-500.0,0.00016438,2]
[389526176,1759698637901,-500.0,0.00016438,2]
[389526177,1759698637910,-500.0,0.00016438,2]
[389526178,1759698637919,-501.77,0.00016438,2]
[389526179,1759698637928,-500.0,0.00016438,2]
[389526180,1759698637937,-500.0,0.00016438,2]
[389526181,1759698637946,-500.0,0.00016438,2]
[389526182,1759698637956,-507.78,0.00016438,2]
[389526183,1759698637965,-500.0,0.00016438,2]
[389526184,1759698637974,-500.0,0.00016438,2]
[389526185,1759698637983,-1339.57,0.00016438,2]
[389526186,1759698637992,-500.0,0.00016438,2]
[389526187,1759698638001,-500.0,0.00016438,2]
[389526188,1759698638010,-500.0,0.00016438,2]
[389526189,1759698638020,-311.15202665,0.00016438,2]
[389526190,1759698638029,-500.0,0.00016438,2]
[389526191,1759698638039,-450.28010447,0.00016438,2]
[389526192,1759698638048,-787.95,0.00016438,2]
[389526193,1759698638057,-500.0,0.00016438,2]
[389526194,1759698638066,-500.0,0.00016438,2]
[389526195,1759698638076,-500.0,0.00016438,2]
[389526196,1759698638085,-500.0,0.00016438,2]
[389526197,1759698638094,-1344.19,0.00016438,2]
[389526198,1759698638103,-500.0,0.00016438,2]
[389526199,1759698638112,-500.0,0.00016438,2]
[389526200,1759698638122,-500.0,0.00016438,2]
[389526201,1759698638131,-500.0,0.00016438,2]
[389526202,1759698638140,-500.0,0.00016438,2]
[389526203,1759698638150,-752.38,0.00016438,2]
[389526204,1759698638159,-500.0,0.00016438,2]
[389526205,1759698638168,-596.19,0.00016438,2]
[389526206,1759698638177,-500.0,0.00016438,2]
[389526207,1759698638187,-500.0,0.00016438,2]
[389526208,1759698638196,-500.0,0.00016438,2]
[389526209,1759698638205,-500.0,0.00016438,2]
[389526210,1759698638215,-546.72,0.00016438,2]
[389526211,1759698638224,-621.04,0.00016438,2]
[389526212,1759698638233,-500.0,0.00016438,2]
[389526213,1759698638242,-500.0,0.00016438,2]
[389526214,1759698638251,-500.0,0.00016438,2]
[389526215,1759698638260,-552.08,0.00016438,2]
[389526216,1759698638270,-671.56,0.00016438,2]
[389526217,1759698638279,-500.0,0.00016438,2]
[389526218,1759698638288,-957.82,0.00016438,2]
[389526219,1759698638297,-500.0,0.00016438,2]
[389526220,1759698638306,-500.0,0.00016438,2]
[389526221,1759698638316,-500.0,0.00016438,2]
[389526222,1759698638325,-500.0,0.00016438,2]
[389526223,1759698638334,-1242.2,0.00016438,2]
[389526224,1759698638343,-500.0,0.00016438,2]
[389526225,1759698638353,-500.0,0.00016438,2]
[389526226,1759698638362,-500.0,0.00016438,2]
[389526227,1759698638371,-500.0,0.00016438,2]
[389526228,1759698638381,-500.0,0.00016438,2]
[389526229,1759698638390,-500.0,0.00016438,2]
[389526230,1759698638399,-641.07,0.00016438,2]
[389526231,1759698638408,-500.0,0.00016438,2]
[389526232,1759698638418,-500.0,0.00016438,2]
[389526233,1759698638427,-500.0,0.00016438,2]
[389526234,1759698638436,-500.0,0.00016438,2]
[389526235,1759698638445,-500.0,0.00016438,2]
[389526236,1759698638454,-500.0,0.00016438,2]
[389526237,1759698638464,-500.0,0.00016438,2]
[389526238,1759698638473,-500.0,0.00016438,2]
[389526239,1759698638483,-500.0,0.00016438,2]
[389526240,1759698638492,-1244.1,0.00016438,2]
[389526241,1759698638501,-555.01,0.00016438,2]
[389526242,1759698638511,-500.0,0.00016438,2]
[389526243,1759698638520,-500.0,0.00016438,2]
[389526244,1759698638530,-500.0,0.00016438,2]
[389526245,1759698638539,-500.0,0.00016438,2]
[389526246,1759698638549,-3387.9,0.00016438,2]
[389526247,1759698638558,-1240.9,0.00016438,2]
[389526248,1759698638568,-776.22,0.00016438,2]
[389526249,1759698638578,-689.51,0.00016438,2]
[389526250,1759698638587,-500.0,0.00016438,2]
[389526251,1759698638597,-500.0,0.00016438,2]